[Event "Early-Titled-Tuesday-Blitz-February-20-2024"]
[Site "Chess.com"]
[Date "2024.02.20"]
[Round "2"]
[White "elchacal664"]
[Black "SirStrateg"]
[Result "0-1"]
[WhiteElo "2366"]
[BlackElo "2647"]
[TimeControl "180+1"]
[EndTime "8:17:44 PST"]
[Termination "SirStrateg won by resignation"]

1. e4 {[%clk 0:03:00.9]} 1... Nf6 {[%clk 0:02:59.6]} 2. Nc3 {[%clk 0:02:56.9]}
2... d6 {[%clk 0:02:59.8]} 3. Bc4 {[%clk 0:02:56.1]} 3... c6 {[%clk 0:02:59.6]}
4. f4 {[%clk 0:02:56.1]} 4... b5 {[%clk 0:02:59.6]} 5. e5 {[%clk 0:02:44.3]}
5... bxc4 {[%clk 0:02:59.8]} 6. exf6 {[%clk 0:02:44.1]} 6... gxf6 {[%clk
0:03:00]} 7. Qe2 {[%clk 0:02:37.1]} 7... d5 {[%clk 0:03:00.1]} 8. Nf3 {[%clk
0:02:36.5]} 8... Bg4 {[%clk 0:02:59.7]} 9. h3 {[%clk 0:02:35.8]} 9... Bxf3
{[%clk 0:03:00]} 10. Qxf3 {[%clk 0:02:35.6]} 10... f5 {[%clk 0:03:00]} 11. O-O
{[%clk 0:02:34.4]} 11... e6 {[%clk 0:02:58.6]} 12. b3 {[%clk 0:02:05.2]} 12...
cxb3 {[%clk 0:02:54]} 13. axb3 {[%clk 0:02:06.1]} 13... Bc5+ {[%clk 0:02:49.5]}
14. Kh1 {[%clk 0:02:05]} 14... Nd7 {[%clk 0:02:50]} 15. Bb2 {[%clk 0:02:02.4]}
15... Rg8 {[%clk 0:02:50.1]} 16. Ne2 {[%clk 0:01:55]} 16... Qh4 {[%clk
0:02:48.7]} 17. Ra6 {[%clk 0:01:34.5]} 17... Bb6 {[%clk 0:02:43.9]} 18. Bd4
{[%clk 0:01:30.3]} 18... Ke7 {[%clk 0:02:38.3]} 19. Rfa1 {[%clk 0:01:26.5]}
19... c5 {[%clk 0:02:29.7]} 20. Bc3 {[%clk 0:01:03.6]} 20... Rac8 {[%clk
0:02:24.6]} 21. b4 {[%clk 0:01:00.8]} 21... cxb4 {[%clk 0:02:10.9]} 22. Bxb4+
{[%clk 0:01:00.3]} 22... Ke8 {[%clk 0:02:08.9]} 23. Qd3 {[%clk 0:00:44]} 23...
Qf2 {[%clk 0:02:05.6]} 24. g3 {[%clk 0:00:37.2]} 24... Rc4 {[%clk 0:01:55.7]}
25. Bc3 {[%clk 0:00:27]} 25... h5 {[%clk 0:01:54.3]} 26. R6a4 {[%clk 0:00:24.4]}
26... Rxa4 {[%clk 0:01:50.4]} 27. Rxa4 {[%clk 0:00:25.3]} 27... h4 {[%clk
0:01:50.3]} 28. Bd4 {[%clk 0:00:20.3]} 28... Qf1+ {[%clk 0:01:48.2]} 29. Ng1
{[%clk 0:00:18.3]} 29... Qxd3 {[%clk 0:01:45.3]} 30. cxd3 {[%clk 0:00:19.2]}
30... Bxd4 {[%clk 0:01:45.6]} 31. Rxd4 {[%clk 0:00:20.1]} 31... Rxg3 {[%clk
0:01:45.8]} 32. Ra4 {[%clk 0:00:19.9]} 32... Rxd3 {[%clk 0:01:44.7]} 33. Rxa7
{[%clk 0:00:20.4]} 33... Nf6 {[%clk 0:01:43.2]} 34. Ra8+ {[%clk 0:00:20.8]}
34... Ke7 {[%clk 0:01:43.5]} 35. Ra7+ {[%clk 0:00:18.3]} 35... Kf8 {[%clk
0:01:43.7]} 36. Ra2 {[%clk 0:00:18.2]} 36... Ne4 {[%clk 0:01:43.4]} 37. Kg2
{[%clk 0:00:18.2]} 37... Rxd2+ {[%clk 0:01:42.4]} 38. Rxd2 {[%clk 0:00:18.4]}
38... Nxd2 {[%clk 0:01:43.2]} 39. Kf2 {[%clk 0:00:19]} 39... Kg7 {[%clk
0:01:43]} 40. Ke3 {[%clk 0:00:19]} 40... Nf1+ {[%clk 0:01:39.4]} 41. Kf2 {[%clk
0:00:19]} 41... Ng3 {[%clk 0:01:36.7]} 42. Nf3 {[%clk 0:00:19.4]} 42... Nh5
{[%clk 0:01:34.8]} 43. Nxh4 {[%clk 0:00:19.7]} 43... Nxf4 {[%clk 0:01:34.9]} 44.
Kg3 {[%clk 0:00:17.5]} 44... Ng6 {[%clk 0:01:35.3]} 45. Nf3 {[%clk 0:00:16.4]}
45... e5 {[%clk 0:01:33.7]} 46. h4 {[%clk 0:00:15.8]} 46... e4 {[%clk
0:01:29.6]} 47. Nd4 {[%clk 0:00:16.2]} 47... f4+ {[%clk 0:01:29.9]} 48. Kg4
{[%clk 0:00:16]} 48... f3 {[%clk 0:01:30.6]} 49. Kg3 {[%clk 0:00:14.7]} 49...
Ne5 {[%clk 0:01:22]} 50. h5 {[%clk 0:00:13.8]} 50... Kh6 {[%clk 0:01:22]} 51.
Kf4 {[%clk 0:00:09.6]} 51... f2 {[%clk 0:01:19.4]} 52. Nf5+ {[%clk 0:00:10.1]}
52... Kxh5 {[%clk 0:01:19.1]} 53. Ng3+ {[%clk 0:00:10.6]} 53... Kh4 {[%clk
0:01:19.7]} 54. Nf1 {[%clk 0:00:09.2]} 54... Nd3+ {[%clk 0:01:18]} 55. Ke3
{[%clk 0:00:09.3]} 55... Kh3 {[%clk 0:01:17.5]} 56. Kd4 {[%clk 0:00:09.4]} 56...
Kg2 {[%clk 0:01:17.8]} 57. Ne3+ {[%clk 0:00:10.2]} 57... Kg1 {[%clk 0:01:18.4]}
58. Kxd5 {[%clk 0:00:10.5]} 58... f1=Q {[%clk 0:01:19]} 59. Nxf1 {[%clk
0:00:10.9]} 59... Kxf1 {[%clk 0:01:19.5]} 60. Kxe4 {[%clk 0:00:11.7]} 60... Nc5+
{[%clk 0:01:15.7]} 61. Kf5 {[%clk 0:00:12.6]} 61... Nd7 {[%clk 0:01:16.1]} 62.
Ke4 {[%clk 0:00:06.4]} 62... Kf2 {[%clk 0:01:15.4]} 63. Kd5 {[%clk 0:00:06.9]}
63... Kg3 {[%clk 0:01:15.6]} 64. Kd6 {[%clk 0:00:07.5]} 64... f5 {[%clk
0:01:16]} 65. Kd5 {[%clk 0:00:07.1]} 65... f4 {[%clk 0:01:16.5]} 66. Ke4 {[%clk
0:00:08]} 66... f3 {[%clk 0:01:17.1]} 67. Ke3 {[%clk 0:00:08.9]} 67... f2 {[%clk
0:01:17.7]} 68. Ke2 {[%clk 0:00:09.8]} 68... Kg2 {[%clk 0:01:18.4]} 0-1

[Event "Early-Titled-Tuesday-Blitz-February-20-2024"]
[Site "Chess.com"]
[Date "2024.02.20"]
[Round "2"]
[White "JiaHaoxiang"]
[Black "baki83"]
[Result "1-0"]
[WhiteElo "2623"]
[BlackElo "2891"]
[TimeControl "180+1"]
[EndTime "8:17:45 PST"]
[Termination "JiaHaoxiang won by resignation"]

1. d4 {[%clk 0:03:00.9]} 1... d6 {[%clk 0:02:59.2]} 2. g3 {[%clk 0:02:59.1]}
2... e5 {[%clk 0:02:58.4]} 3. dxe5 {[%clk 0:02:58.9]} 3... dxe5 {[%clk
0:02:58.2]} 4. Qxd8+ {[%clk 0:02:59.6]} 4... Kxd8 {[%clk 0:02:58.8]} 5. Bg2
{[%clk 0:02:59.1]} 5... c6 {[%clk 0:02:59.1]} 6. b3 {[%clk 0:02:57.1]} 6... f6
{[%clk 0:02:58.4]} 7. Bb2 {[%clk 0:02:57.4]} 7... Be6 {[%clk 0:02:58.4]} 8. Nd2
{[%clk 0:02:54.6]} 8... Nd7 {[%clk 0:02:58.5]} 9. h4 {[%clk 0:02:50.4]} 9... Kc7
{[%clk 0:02:57]} 10. Nh3 {[%clk 0:02:49.4]} 10... a5 {[%clk 0:02:55]} 11. a4
{[%clk 0:02:49]} 11... Bb4 {[%clk 0:02:53.5]} 12. O-O-O {[%clk 0:02:48.4]} 12...
Ne7 {[%clk 0:02:51.7]} 13. Ne4 {[%clk 0:02:37.9]} 13... Nd5 {[%clk 0:02:25.5]}
14. c3 {[%clk 0:02:29.7]} 14... Be7 {[%clk 0:02:24.9]} 15. c4 {[%clk 0:02:30]}
15... Nb4 {[%clk 0:02:22.1]} 16. f4 {[%clk 0:02:22.6]} 16... Rad8 {[%clk
0:02:12]} 17. fxe5 {[%clk 0:02:16.8]} 17... Nxe5 {[%clk 0:02:11.4]} 18. Bxe5+
{[%clk 0:02:16.2]} 18... fxe5 {[%clk 0:02:11.2]} 19. Nhg5 {[%clk 0:02:15.3]}
19... Bf5 {[%clk 0:02:00]} 20. Rdf1 {[%clk 0:02:11.8]} 20... Rdf8 {[%clk
0:01:48.2]} 21. Bh3 {[%clk 0:01:38.8]} 21... Bxg5+ {[%clk 0:01:47.4]} 22. Nxg5
{[%clk 0:01:38.2]} 22... Bxh3 {[%clk 0:01:46.8]} 23. Nxh3 {[%clk 0:01:38.1]}
23... h6 {[%clk 0:01:43.9]} 24. Nf2 {[%clk 0:01:31.3]} 24... Rf5 {[%clk
0:01:29.4]} 25. Ne4 {[%clk 0:01:30.5]} 25... Rhf8 {[%clk 0:01:29.3]} 26. Rxf5
{[%clk 0:01:29.9]} 26... Rxf5 {[%clk 0:01:29.6]} 27. Kd2 {[%clk 0:01:27.5]}
27... Rf7 {[%clk 0:01:27.1]} 28. Rd1 {[%clk 0:00:56.2]} 28... b6 {[%clk
0:01:16.1]} 29. Kc3 {[%clk 0:00:49.6]} 29... Na2+ {[%clk 0:01:14.8]} 30. Kb2
{[%clk 0:00:49.7]} 30... Nb4 {[%clk 0:01:15.4]} 31. Kc3 {[%clk 0:00:50.3]} 31...
Na6 {[%clk 0:01:07.7]} 32. Rd3 {[%clk 0:00:40.8]} 32... Nb8 {[%clk 0:00:47.4]}
33. Rd6 {[%clk 0:00:30]} 33... Nd7 {[%clk 0:00:44.7]} 34. Re6 {[%clk 0:00:30.3]}
34... c5 {[%clk 0:00:20.7]} 35. Nd6 {[%clk 0:00:26.9]} 35... Rf2 {[%clk
0:00:19.6]} 36. Kd2 {[%clk 0:00:22]} 36... Nf6 {[%clk 0:00:15.2]} 37. Ne8+
{[%clk 0:00:18.5]} 37... Kd7 {[%clk 0:00:14.3]} 38. Nxg7 {[%clk 0:00:18.6]}
38... Ne4+ {[%clk 0:00:12.5]} 39. Ke3 {[%clk 0:00:19]} 39... Rg2 {[%clk
0:00:10.9]} 40. Kxe4 {[%clk 0:00:18.7]} 40... Rxg3 {[%clk 0:00:11.5]} 41. Nf5
{[%clk 0:00:17.2]} 41... Rg4+ {[%clk 0:00:10.8]} 42. Kd5 {[%clk 0:00:16.8]} 1-0

[Event "Early-Titled-Tuesday-Blitz-February-20-2024"]
[Site "Chess.com"]
[Date "2024.02.20"]
[Round "2"]
[White "Triumphmate"]
[Black "arnash_bauyrzhan"]
[Result "1-0"]
[WhiteElo "2511"]
[BlackElo "2252"]
[TimeControl "180+1"]
[EndTime "8:17:48 PST"]
[Termination "Triumphmate won on time"]

1. e4 {[%clk 0:02:46.6]} 1... c5 {[%clk 0:02:59.3]} 2. Nf3 {[%clk 0:02:47.1]}
2... e6 {[%clk 0:02:59.1]} 3. d4 {[%clk 0:02:47.8]} 3... cxd4 {[%clk 0:02:59.7]}
4. Nxd4 {[%clk 0:02:48.7]} 4... a6 {[%clk 0:03:00.1]} 5. Nc3 {[%clk 0:02:49.2]}
5... Qc7 {[%clk 0:02:59.7]} 6. Be3 {[%clk 0:02:48]} 6... Bb4 {[%clk 0:02:59.1]}
7. Bd3 {[%clk 0:02:44.6]} 7... Bxc3+ {[%clk 0:02:55.7]} 8. bxc3 {[%clk
0:02:38.3]} 8... Qxc3+ {[%clk 0:02:55.3]} 9. Kf1 {[%clk 0:02:38.8]} 9... Nf6
{[%clk 0:02:49.1]} 10. Rb1 {[%clk 0:02:36.2]} 10... Qc7 {[%clk 0:02:40]} 11. Qf3
{[%clk 0:02:32.5]} 11... Nc6 {[%clk 0:02:35.5]} 12. Nxc6 {[%clk 0:02:26.6]}
12... dxc6 {[%clk 0:02:34.7]} 13. Bf4 {[%clk 0:02:25.4]} 13... e5 {[%clk
0:02:33.3]} 14. Bg5 {[%clk 0:02:25.3]} 14... Qe7 {[%clk 0:02:31]} 15. Bd2 {[%clk
0:02:09.2]} 15... b5 {[%clk 0:02:12.6]} 16. Qe3 {[%clk 0:02:07.2]} 16... c5
{[%clk 0:02:07]} 17. a4 {[%clk 0:01:55.3]} 17... O-O {[%clk 0:01:26.9]} 18. axb5
{[%clk 0:01:47.3]} 18... axb5 {[%clk 0:01:27]} 19. Bxb5 {[%clk 0:01:47]} 19...
Ra2 {[%clk 0:01:26.3]} 20. Bd3 {[%clk 0:01:35.9]} 20... c4 {[%clk 0:01:14]} 21.
Bxc4 {[%clk 0:01:33.5]} 21... Rxc2 {[%clk 0:01:11.6]} 22. Bd3 {[%clk 0:01:33.2]}
22... Ra2 {[%clk 0:00:42]} 23. Bb4 {[%clk 0:01:33]} 23... Qb7 {[%clk 0:00:37.4]}
24. Bxf8 {[%clk 0:01:29.8]} 24... Ng4 {[%clk 0:00:15.5]} 25. Qg5 {[%clk
0:01:20.1]} 25... Rxf2+ {[%clk 0:00:13.6]} 26. Kg1 {[%clk 0:01:20.7]} 26... f6
{[%clk 0:00:04.3]} 27. Rxb7 {[%clk 0:01:17.7]} 27... fxg5 {[%clk 0:00:04.1]} 28.
Bc4+ {[%clk 0:01:03.6]} 28... Kxf8 {[%clk 0:00:04.3]} 29. Rb8 {[%clk 0:01:03.5]}
29... Rc2 {[%clk 0:00:02.7]} 30. Rxc8+ {[%clk 0:01:03.5]} 30... Ke7 {[%clk
0:00:03.3]} 31. g3 {[%clk 0:00:59.4]} 31... Rc1+ {[%clk 0:00:02.7]} 32. Kg2
{[%clk 0:01:00]} 32... Rxc4 {[%clk 0:00:02.8]} 33. Rxc4 {[%clk 0:00:59.4]} 33...
Ne3+ {[%clk 0:00:03.3]} 34. Kf3 {[%clk 0:01:00]} 34... Nxc4 {[%clk 0:00:04]} 35.
Ra1 {[%clk 0:01:00.5]} 35... Nd2+ {[%clk 0:00:03]} 36. Kg4 {[%clk 0:00:59.1]}
36... Nxe4 {[%clk 0:00:02.8]} 37. Kf5 {[%clk 0:00:59.7]} 37... Nd6+ {[%clk
0:00:02.8]} 38. Kxe5 {[%clk 0:01:00]} 38... Nf7+ {[%clk 0:00:01.9]} 39. Kf5
{[%clk 0:01:00.6]} 39... g6+ {[%clk 0:00:02]} 40. Ke4 {[%clk 0:01:00.1]} 40...
Ke6 {[%clk 0:00:02.1]} 41. Ra6+ {[%clk 0:01:00.5]} 41... Nd6+ {[%clk 0:00:02.4]}
42. Kf3 {[%clk 0:01:01.1]} 42... Ke5 {[%clk 0:00:02.5]} 43. Ra5+ {[%clk
0:01:00.2]} 43... Ke6 {[%clk 0:00:02.8]} 44. Rxg5 {[%clk 0:00:59.2]} 44... Nf5
{[%clk 0:00:03]} 45. g4 {[%clk 0:00:59.2]} 45... Nd4+ {[%clk 0:00:02.8]} 46. Kg3
{[%clk 0:00:59.1]} 46... Kf6 {[%clk 0:00:02]} 47. Ra5 {[%clk 0:00:59.1]} 47...
Ne6 {[%clk 0:00:01.7]} 48. h4 {[%clk 0:00:58.8]} 48... Nd4 {[%clk 0:00:01.5]}
49. g5+ {[%clk 0:00:58.5]} 49... Kf7 {[%clk 0:00:01]} 50. Kf4 {[%clk 0:00:58.4]}
1-0

[Event "Early-Titled-Tuesday-Blitz-February-20-2024"]
[Site "Chess.com"]
[Date "2024.02.20"]
[Round "2"]
[White "dimoni64"]
[Black "Der_Balak_3Halak"]
[Result "1/2-1/2"]
[WhiteElo "2098"]
[BlackElo "2434"]
[TimeControl "180+1"]
[EndTime "8:17:50 PST"]
[Termination "Game drawn by stalemate"]

1. d4 {[%clk 0:03:00.9]} 1... d5 {[%clk 0:03:00.6]} 2. Bf4 {[%clk 0:03:00.8]}
2... Nf6 {[%clk 0:02:59.6]} 3. e3 {[%clk 0:03:00.8]} 3... e6 {[%clk 0:03:00.3]}
4. Nf3 {[%clk 0:03:01.2]} 4... Bd6 {[%clk 0:03:00.8]} 5. Ne5 {[%clk 0:02:57.9]}
5... Nbd7 {[%clk 0:02:56.4]} 6. Bd3 {[%clk 0:02:56.5]} 6... Qe7 {[%clk
0:02:53.6]} 7. O-O {[%clk 0:02:54.5]} 7... c5 {[%clk 0:02:52.6]} 8. c3 {[%clk
0:02:54]} 8... O-O {[%clk 0:02:51.1]} 9. Nd2 {[%clk 0:02:48.8]} 9... a6 {[%clk
0:02:22.8]} 10. Rc1 {[%clk 0:02:40.7]} 10... Ne8 {[%clk 0:01:58]} 11. Qh5 {[%clk
0:02:24.1]} 11... g6 {[%clk 0:01:47.3]} 12. Qg4 {[%clk 0:02:20.2]} 12... f6
{[%clk 0:01:38]} 13. Nxg6 {[%clk 0:01:47.2]} 13... hxg6 {[%clk 0:01:34.6]} 14.
Bxg6 {[%clk 0:01:40.9]} 14... f5 {[%clk 0:00:54.6]} 15. Bxf5+ {[%clk 0:01:30.9]}
15... Ng7 {[%clk 0:00:48.6]} 16. Bb1 {[%clk 0:01:19]} 16... Bxf4 {[%clk
0:00:46.6]} 17. exf4 {[%clk 0:01:18.3]} 17... Nf6 {[%clk 0:00:39.4]} 18. Qh4
{[%clk 0:01:05.8]} 18... Nf5 {[%clk 0:00:20.2]} 19. Bxf5 {[%clk 0:00:53.4]}
19... exf5 {[%clk 0:00:21.1]} 20. Rfe1 {[%clk 0:00:53.8]} 20... Qg7 {[%clk
0:00:19.8]} 21. Re3 {[%clk 0:00:52.8]} 21... Kf7 {[%clk 0:00:13.7]} 22. Rce1
{[%clk 0:00:50.3]} 22... Ne4 {[%clk 0:00:11.6]} 23. f3 {[%clk 0:00:47.1]} 23...
Rh8 {[%clk 0:00:11]} 24. Nxe4 {[%clk 0:00:30.8]} 24... Rxh4 {[%clk 0:00:10]} 25.
Ng5+ {[%clk 0:00:30.2]} 25... Kg6 {[%clk 0:00:07.5]} 26. Re7 {[%clk 0:00:25.3]}
26... Be6 {[%clk 0:00:08.2]} 27. Rxg7+ {[%clk 0:00:24.7]} 27... Kxg7 {[%clk
0:00:08.9]} 28. Rxe6 {[%clk 0:00:24.2]} 28... cxd4 {[%clk 0:00:09.4]} 29. cxd4
{[%clk 0:00:23.6]} 29... Rc8 {[%clk 0:00:09.9]} 30. Re7+ {[%clk 0:00:22.7]}
30... Kf8 {[%clk 0:00:09.4]} 31. Rxb7 {[%clk 0:00:22.9]} 31... Rxf4 {[%clk
0:00:08.9]} 32. Ne6+ {[%clk 0:00:22.4]} 32... Ke8 {[%clk 0:00:08.5]} 33. Nxf4
{[%clk 0:00:23.3]} 33... Rc1+ {[%clk 0:00:09]} 34. Kf2 {[%clk 0:00:22.9]} 34...
Rc2+ {[%clk 0:00:09.9]} 35. Kg3 {[%clk 0:00:23.5]} 35... Kf8 {[%clk 0:00:08]}
36. Nxd5 {[%clk 0:00:23.1]} 36... f4+ {[%clk 0:00:07.9]} 37. Nxf4 {[%clk
0:00:21.6]} 37... a5 {[%clk 0:00:08.8]} 38. Ra7 {[%clk 0:00:21.6]} 38... Rxb2
{[%clk 0:00:08.3]} 39. Rxa5 {[%clk 0:00:22.1]} 39... Kg7 {[%clk 0:00:09.2]} 40.
Re5 {[%clk 0:00:22.3]} 40... Kf6 {[%clk 0:00:10.1]} 41. Ra5 {[%clk 0:00:21.7]}
41... Kg7 {[%clk 0:00:10]} 42. h4 {[%clk 0:00:22.1]} 42... Kf6 {[%clk
0:00:10.4]} 43. h5 {[%clk 0:00:22.7]} 43... Rb6 {[%clk 0:00:10.2]} 44. Nd5+
{[%clk 0:00:22]} 44... Kg7 {[%clk 0:00:09.5]} 45. Nxb6 {[%clk 0:00:22.9]} 45...
Kh6 {[%clk 0:00:10.4]} 46. Ra6 {[%clk 0:00:21.5]} 46... Kg5 {[%clk 0:00:10.3]}
47. Nd7 {[%clk 0:00:21.9]} 47... Kxh5 {[%clk 0:00:10.4]} 48. f4 {[%clk
0:00:20.6]} 1/2-1/2

[Event "Early-Titled-Tuesday-Blitz-February-20-2024"]
[Site "Chess.com"]
[Date "2024.02.20"]
[Round "2"]
[White "nicolochessit"]
[Black "Viacheslav92"]
[Result "0-1"]
[WhiteElo "2320"]
[BlackElo "2548"]
[TimeControl "180+1"]
[EndTime "8:17:53 PST"]
[Termination "Viacheslav92 won by checkmate"]

1. e4 {[%clk 0:02:54.2]} 1... c5 {[%clk 0:02:57.5]} 2. Nf3 {[%clk 0:02:53.6]}
2... d6 {[%clk 0:02:58]} 3. Bb5+ {[%clk 0:02:50.6]} 3... Bd7 {[%clk 0:02:56.9]}
4. Bxd7+ {[%clk 0:02:50.2]} 4... Qxd7 {[%clk 0:02:57.8]} 5. O-O {[%clk
0:02:49.6]} 5... Nc6 {[%clk 0:02:57.6]} 6. c3 {[%clk 0:02:49.3]} 6... e6 {[%clk
0:02:55.5]} 7. Re1 {[%clk 0:02:48.7]} 7... Nf6 {[%clk 0:02:53.8]} 8. d4 {[%clk
0:02:48.6]} 8... cxd4 {[%clk 0:02:54.7]} 9. cxd4 {[%clk 0:02:49.5]} 9... d5
{[%clk 0:02:54.9]} 10. e5 {[%clk 0:02:50.1]} 10... Ne4 {[%clk 0:02:54.8]} 11. a3
{[%clk 0:02:50.8]} 11... Be7 {[%clk 0:02:50.1]} 12. Nbd2 {[%clk 0:02:50.6]}
12... Nxd2 {[%clk 0:02:49.1]} 13. Bxd2 {[%clk 0:02:51.5]} 13... O-O {[%clk
0:02:49.1]} 14. Rc1 {[%clk 0:02:47.4]} 14... Rfc8 {[%clk 0:02:49.6]} 15. Rc3
{[%clk 0:02:46.6]} 15... Bd8 {[%clk 0:02:44.6]} 16. h4 {[%clk 0:02:39.9]} 16...
Bb6 {[%clk 0:02:42.9]} 17. Rd3 {[%clk 0:02:38.6]} 17... Na5 {[%clk 0:02:37.7]}
18. Bxa5 {[%clk 0:02:03.4]} 18... Bxa5 {[%clk 0:02:38.6]} 19. b4 {[%clk
0:02:04]} 19... Bd8 {[%clk 0:02:35.5]} 20. Ng5 {[%clk 0:02:03.2]} 20... h6
{[%clk 0:02:32.1]} 21. Qh5 {[%clk 0:01:57.2]} 21... Qe7 {[%clk 0:01:39.1]} 22.
Rh3 {[%clk 0:01:16.3]} 22... Qf8 {[%clk 0:01:33.4]} 23. Nf3 {[%clk 0:00:43.4]}
23... Rc3 {[%clk 0:01:21.2]} 24. Rg3 {[%clk 0:00:35.9]} 24... g6 {[%clk
0:01:21.2]} 25. Qg4 {[%clk 0:00:24.4]} 25... Rac8 {[%clk 0:01:13.7]} 26. h5
{[%clk 0:00:15.8]} 26... g5 {[%clk 0:01:14.1]} 27. Re3 {[%clk 0:00:14.9]} 27...
Rxe3 {[%clk 0:01:03.7]} 28. fxe3 {[%clk 0:00:14.9]} 28... Rc3 {[%clk 0:01:04.1]}
29. Nd2 {[%clk 0:00:04.2]} 29... Rxa3 {[%clk 0:00:51.9]} 30. Rf3 {[%clk
0:00:04.1]} 30... Rd3 {[%clk 0:00:46.9]} 31. Rf2 {[%clk 0:00:03.5]} 31... Be7
{[%clk 0:00:43.2]} 32. Qe2 {[%clk 0:00:03.1]} 32... Ra3 {[%clk 0:00:41.9]} 33.
e4 {[%clk 0:00:03.3]} 33... Bxb4 {[%clk 0:00:37.3]} 34. exd5 {[%clk 0:00:03.1]}
34... Ra2 {[%clk 0:00:30.9]} 35. Qe4 {[%clk 0:00:01.6]} 35... Rxd2 {[%clk
0:00:27.9]} 36. Rxd2 {[%clk 0:00:02]} 36... Bxd2 {[%clk 0:00:28.7]} 37. dxe6
{[%clk 0:00:02.9]} 37... fxe6 {[%clk 0:00:26.8]} 38. Qg6+ {[%clk 0:00:03.3]}
38... Qg7 {[%clk 0:00:26.3]} 39. Qxe6+ {[%clk 0:00:03.8]} 39... Qf7 {[%clk
0:00:26.9]} 40. Qc8+ {[%clk 0:00:03.8]} 40... Kg7 {[%clk 0:00:27.4]} 41. e6
{[%clk 0:00:04.2]} 41... Be3+ {[%clk 0:00:23.1]} 42. Kh1 {[%clk 0:00:02.5]}
42... Qf1+ {[%clk 0:00:20.6]} 43. Kh2 {[%clk 0:00:03.1]} 43... Qf4+ {[%clk
0:00:17.6]} 44. Kh1 {[%clk 0:00:03.1]} 44... Qh4# {[%clk 0:00:17.2]} 0-1

[Event "Early-Titled-Tuesday-Blitz-February-20-2024"]
[Site "Chess.com"]
[Date "2024.02.20"]
[Round "2"]
[White "Boundless_Strike"]
[Black "TigrVShlyape"]
[Result "0-1"]
[WhiteElo "2611"]
[BlackElo "2925"]
[TimeControl "180+1"]
[EndTime "8:17:54 PST"]
[Termination "TigrVShlyape won by resignation"]

1. d4 {[%clk 0:03:00.9]} 1... f5 {[%clk 0:02:57.7]} 2. e4 {[%clk 0:03:00.4]}
2... fxe4 {[%clk 0:02:57.2]} 3. Nc3 {[%clk 0:03:01]} 3... Nf6 {[%clk 0:02:56.7]}
4. Bg5 {[%clk 0:03:01.3]} 4... g6 {[%clk 0:02:56]} 5. f3 {[%clk 0:03:00.1]} 5...
d5 {[%clk 0:02:32.9]} 6. fxe4 {[%clk 0:02:57.7]} 6... Nxe4 {[%clk 0:02:25.7]} 7.
Nxe4 {[%clk 0:02:56.5]} 7... dxe4 {[%clk 0:02:26]} 8. Bc4 {[%clk 0:02:54.7]}
8... Qd6 {[%clk 0:02:21.8]} 9. c3 {[%clk 0:02:50.9]} 9... Be6 {[%clk 0:02:13.2]}
10. Qa4+ {[%clk 0:02:28.8]} 10... Nd7 {[%clk 0:02:09]} 11. Bf4 {[%clk
0:02:15.1]} 11... Qxf4 {[%clk 0:02:08]} 12. Bxe6 {[%clk 0:02:13.6]} 12... Qd6
{[%clk 0:02:07.4]} 13. d5 {[%clk 0:02:03.4]} 13... c6 {[%clk 0:01:52.4]} 14. Qd4
{[%clk 0:01:13.1]} 14... Nf6 {[%clk 0:01:47.8]} 15. O-O-O {[%clk 0:00:56.8]}
15... Bh6+ {[%clk 0:01:42.1]} 16. Kc2 {[%clk 0:00:53.4]} 16... cxd5 {[%clk
0:01:39]} 17. Bxd5 {[%clk 0:00:42.1]} 17... Qxd5 {[%clk 0:01:38.1]} 18. Qxd5
{[%clk 0:00:39.2]} 18... Nxd5 {[%clk 0:01:37.9]} 19. Rxd5 {[%clk 0:00:40.1]}
19... Rd8 {[%clk 0:01:33.9]} 20. Rxd8+ {[%clk 0:00:35.9]} 20... Kxd8 {[%clk
0:01:34.2]} 21. Nh3 {[%clk 0:00:28.9]} 21... Kd7 {[%clk 0:01:33.5]} 22. Re1
{[%clk 0:00:28.5]} 22... e3 {[%clk 0:01:33.3]} 23. Kd3 {[%clk 0:00:11.9]} 23...
Rf8 {[%clk 0:01:30.9]} 24. Ke4 {[%clk 0:00:06.6]} 24... Rf5 {[%clk 0:01:22.1]}
25. g4 {[%clk 0:00:06.4]} 25... Ra5 {[%clk 0:01:21.1]} 26. a3 {[%clk 0:00:06.4]}
26... Ke6 {[%clk 0:01:21.2]} 27. Re2 {[%clk 0:00:04.3]} 27... Re5+ {[%clk
0:01:20.6]} 28. Kf3 {[%clk 0:00:03.3]} 28... a5 {[%clk 0:01:20.8]} 29. g5 {[%clk
0:00:03.3]} 29... Bxg5 {[%clk 0:01:20.4]} 30. Nxg5+ {[%clk 0:00:04]} 30... Rxg5
{[%clk 0:01:20.8]} 31. Rxe3+ {[%clk 0:00:04.7]} 31... Re5 {[%clk 0:01:20.7]} 32.
Rd3 {[%clk 0:00:05.2]} 32... Rd5 {[%clk 0:01:21]} 33. Re3+ {[%clk 0:00:05.7]}
33... Kf6 {[%clk 0:01:21.1]} 34. Re2 {[%clk 0:00:05.1]} 34... e5 {[%clk
0:01:20.9]} 35. Ke4 {[%clk 0:00:05.6]} 35... Ke6 {[%clk 0:01:20.1]} 36. Rf2
{[%clk 0:00:05.7]} 36... a4 {[%clk 0:01:19.3]} 37. Re2 {[%clk 0:00:05.8]} 37...
Rd1 {[%clk 0:01:13.9]} 38. Ke3 {[%clk 0:00:05.6]} 38... g5 {[%clk 0:01:08.7]}
39. Rf2 {[%clk 0:00:05.9]} 39... Rd8 {[%clk 0:01:05.5]} 40. Ke4 {[%clk
0:00:05.3]} 40... Rd1 {[%clk 0:01:02.7]} 41. Ke3 {[%clk 0:00:05.7]} 41... g4
{[%clk 0:00:59]} 42. Ke2 {[%clk 0:00:06.1]} 42... Rd7 {[%clk 0:00:58.4]} 43. Ke3
{[%clk 0:00:05.6]} 43... Rf7 {[%clk 0:00:57.7]} 44. Rd2 {[%clk 0:00:04.1]} 44...
h5 {[%clk 0:00:57.3]} 45. Rd8 {[%clk 0:00:04.2]} 45... Rf3+ {[%clk 0:00:57.3]}
46. Ke4 {[%clk 0:00:05]} 46... Rf2 {[%clk 0:00:57.2]} 47. Re8+ {[%clk
0:00:04.1]} 47... Kd6 {[%clk 0:00:57.4]} 48. Rd8+ {[%clk 0:00:04.4]} 48... Kc6
{[%clk 0:00:56.8]} 49. Kxe5 {[%clk 0:00:02.8]} 49... Rxh2 {[%clk 0:00:56.3]} 50.
Rd4 {[%clk 0:00:02.5]} 50... Rxb2 {[%clk 0:00:53.2]} 51. Rxa4 {[%clk 0:00:02.7]}
51... g3 {[%clk 0:00:53.5]} 52. Rc4+ {[%clk 0:00:01.8]} 52... Kb6 {[%clk
0:00:53]} 53. Rc8 {[%clk 0:00:02.4]} 53... g2 {[%clk 0:00:52.4]} 54. Rg8 {[%clk
0:00:03.1]} 54... h4 {[%clk 0:00:52.7]} 55. Kd4 {[%clk 0:00:03.5]} 55... h3
{[%clk 0:00:52.6]} 56. Rxg2 {[%clk 0:00:04.4]} 56... hxg2 {[%clk 0:00:52.4]} 57.
Kc4 {[%clk 0:00:04.2]} 57... g1=Q {[%clk 0:00:51.9]} 58. a4 {[%clk 0:00:05.1]}
0-1